{"text_format":"1","workbook":"xlsx","n_sheets":10,"sheets":["操作","人物","地點","食物","物品","方位","數字","動詞","形容詞","工作表1"],"not_rendered":{"charts":0,"images":8,"macros":1,"external_links":0,"defined_names":0,"comments":0,"pivot_tables":0},"unopened":[],"bounds":{"document_bytes":16777216,"sheet_cells":100000,"rows_first":2000,"rows_last":500,"rows_between":2000,"halvings":0,"cell_chars":16384,"cell_head_chars":4096},"cells_cut":0,"cells_raw":0,"read":"whole","date_system":"1900"}

{"sheet":"操作","index":0,"n_rows":4,"n_cols":5,"rows_kept":4,"cut":false,"hidden":false,"merged":[]}
["2021-10-26",8,36]
[null,null,"動詞"]
["中文","漢字","日文","羅馬","英文"]
["排列、排隊",null,"ならぶ","narabu","queue"]

{"sheet":"人物","index":1,"n_rows":20,"n_cols":8,"rows_kept":20,"cut":false,"hidden":false,"merged":[]}
[{"$f":"COUNT(A2:A100)","v":19},"中文","日文","平假名讀音","羅馬拼音打字","英文"]
[1,"我","私","わたし","watashi","I",null,{"$f":"\"<table name='jp_figure'>\"& CHAR(10) &\"<column name='id'>\"&A2&\"</column>\"& CHAR(10) &\"<column name='chi'>\"&B2&\"</column>\"&CHAR(10)&\"<column name='jpchi'>\"&C2&\"</column>\"&CHAR(10)&\"<column name='jp'>\"&D2&\"</column>\"&CHAR(10)&\"<column name='jpeng'>\"&E2&\"</column>\"&CHAR(10)&\"<column name='eng'>\"&F2&\"</column>\"&CHAR(10) &\"</table>\"","v":"<table name='jp_figure'>\n<column name='id'>1</column>\n<column name='chi'>我</column>\n<column name='jpchi'>私</column>\n<column name='jp'>わたし</column>\n<column name='jpeng'>watashi</column>\n<column name='eng'>I</column>\n</table>"}]
[2,"他/她","彼/彼女","かれ/かのじょ","kare/kanojyo","he/she",null,{"$f":"\"<table name='jp_figure'>\"& CHAR(10) &\"<column name='id'>\"&A3&\"</column>\"& CHAR(10) &\"<column name='chi'>\"&B3&\"</column>\"&CHAR(10)&\"<column name='jpchi'>\"&C3&\"</column>\"&CHAR(10)&\"<column name='jp'>\"&D3&\"</column>\"&CHAR(10)&\"<column name='jpeng'>\"&E3&\"</column>\"&CHAR(10)&\"<column name='eng'>\"&F3&\"</column>\"&CHAR(10) &\"</table>\"","v":"<table name='jp_figure'>\n<column name='id'>2</column>\n<column name='chi'>他/她</column>\n<column name='jpchi'>彼/彼女</column>\n<column name='jp'>かれ/かのじょ</column>\n<column name='jpeng'>kare/kanojyo</column>\n<column name='eng'>he/she</column>\n</table>"}]
[3,"家人","家族","かぞく","kazoku","family",null,"<table name='jp_figure'>\n<column name='id'>3</column>\n<column name='chi'>家人</column>\n<column name='jpchi'>家族</column>\n<column name='jp'>かぞく</column>\n<column name='jpeng'>kazoku</column>\n<column name='eng'>family</column>\n</table>"]
[4,"父母","両親","りょうしん","ryousinn","parents",null,"<table name='jp_figure'>\n<column name='id'>4</column>\n<column name='chi'>父母</column>\n<column name='jpchi'>両親</column>\n<column name='jp'>りょうしん</column>\n<column name='jpeng'>ryousinn</column>\n<column name='eng'>parents</column>\n</table>"]
[5,"爺爺/外公","祖父","そふ","sofu","grandfather",null,"<table name='jp_figure'>\n<column name='id'>5</column>\n<column name='chi'>爺爺/外公</column>\n<column name='jpchi'>祖父</column>\n<column name='jp'>そふ</column>\n<column name='jpeng'>sofu</column>\n<column name='eng'>grandfather</column>\n</table>"]
[6,"奶奶/外婆","祖母","そぼ","sobo","grandmother",null,"<table name='jp_figure'>\n<column name='id'>6</column>\n<column name='chi'>奶奶/外婆</column>\n<column name='jpchi'>祖母</column>\n<column name='jp'>そぼ</column>\n<column name='jpeng'>sobo</column>\n<column name='eng'>grandmother</column>\n</table>"]
[7,"爸爸","父","ちち","chichi","father",null,"<table name='jp_figure'>\n<column name='id'>7</column>\n<column name='chi'>爸爸</column>\n<column name='jpchi'>父</column>\n<column name='jp'>ちち</column>\n<column name='jpeng'>chichi</column>\n<column name='eng'>father</column>\n</table>"]
[8,"媽媽","母","はは","haha","mother",null,"<table name='jp_figure'>\n<column name='id'>8</column>\n<column name='chi'>媽媽</column>\n<column name='jpchi'>母</column>\n<column name='jp'>はは</column>\n<column name='jpeng'>haha</column>\n<column name='eng'>mother</column>\n</table>"]
[9,"兄弟姊妹","兄弟","きょうだい","kyoudai","sibling",null,"<table name='jp_figure'>\n<column name='id'>9</column>\n<column name='chi'>兄弟姊妹</column>\n<column name='jpchi'>兄弟</column>\n<column name='jp'>きょうだい</column>\n<column name='jpeng'>kyoudai</column>\n<column name='eng'>sibling</column>\n</table>"]
[10,"哥哥","兄","あに","ani","elder brother",null,"<table name='jp_figure'>\n<column name='id'>10</column>\n<column name='chi'>哥哥</column>\n<column name='jpchi'>兄</column>\n<column name='jp'>あに</column>\n<column name='jpeng'>ani</column>\n<column name='eng'>elder brother</column>\n</table>"]
[11,"姊姊","姉","あね","ane","Elder sister",null,"<table name='jp_figure'>\n<column name='id'>11</column>\n<column name='chi'>姊姊</column>\n<column name='jpchi'>姉</column>\n<column name='jp'>あね</column>\n<column name='jpeng'>ane</column>\n<column name='eng'>Elder sister</column>\n</table>"]
[12,"弟弟","弟","おとうと","otouto","brother",null,"<table name='jp_figure'>\n<column name='id'>12</column>\n<column name='chi'>弟弟</column>\n<column name='jpchi'>弟</column>\n<column name='jp'>おとうと</column>\n<column name='jpeng'>otouto</column>\n<column name='eng'>brother</column>\n</table>"]
[13,"妹妹","妹","いもうと","imouto","sister",null,"<table name='jp_figure'>\n<column name='id'>13</column>\n<column name='chi'>妹妹</column>\n<column name='jpchi'>妹</column>\n<column name='jp'>いもうと</column>\n<column name='jpeng'>imouto</column>\n<column name='eng'>sister</column>\n</table>"]
[14,"老師","先生","せんせい","sennsei","teacher",null,"<table name='jp_figure'>\n<column name='id'>14</column>\n<column name='chi'>老師</column>\n<column name='jpchi'>先生</column>\n<column name='jp'>せんせい</column>\n<column name='jpeng'>sennsei</column>\n<column name='eng'>teacher</column>\n</table>"]
[15,"學生","学生","がくせい","gakusei","student",null,"<table name='jp_figure'>\n<column name='id'>15</column>\n<column name='chi'>學生</column>\n<column name='jpchi'>学生</column>\n<column name='jp'>がくせい</column>\n<column name='jpeng'>gakusei</column>\n<column name='eng'>student</column>\n</table>"]
[16,"朋友（可指複數）","友達","ともだち","tomodachi","friends",null,"<table name='jp_figure'>\n<column name='id'>16</column>\n<column name='chi'>朋友（可指複數）</column>\n<column name='jpchi'>友達</column>\n<column name='jp'>ともだち</column>\n<column name='jpeng'>tomodachi</column>\n<column name='eng'>friends</column>\n</table>"]
[17,"好朋友","親友","しんゆう","sinnyuu","good friend",null,"<table name='jp_figure'>\n<column name='id'>17</column>\n<column name='chi'>好朋友</column>\n<column name='jpchi'>親友</column>\n<column name='jp'>しんゆう</column>\n<column name='jpeng'>sinnyuu</column>\n<column name='eng'>good friend</column>\n</table>"]
[18,"警察","警察","けいさつ","keisatsu","police (officer)",null,"<table name='jp_figure'>\n<column name='id'>18</column>\n<column name='chi'>警察</column>\n<column name='jpchi'>警察</column>\n<column name='jp'>けいさつ</column>\n<column name='jpeng'>keisatsu</column>\n<column name='eng'>police (officer)</column>\n</table>"]
[19,"公司職員","会社員","かいしゃいん","kaisyainn","employee",null,"<table name='jp_figure'>\n<column name='id'>19</column>\n<column name='chi'>公司職員</column>\n<column name='jpchi'>会社員</column>\n<column name='jp'>かいしゃいん</column>\n<column name='jpeng'>kaisyainn</column>\n<column name='eng'>employee</column>\n</table>"]

{"sheet":"地點","index":2,"n_rows":30,"n_cols":8,"rows_kept":30,"cut":false,"hidden":false,"merged":[]}
[{"$f":"COUNT(A2:A100)","v":29},"中文","日文","平假名讀音","羅馬拼音打字","英文"]
[1,"店","店","みせ","mise","shop",null,{"$f":"\"<table name='jp_place'>\"& CHAR(10) &\"<column name='id'>\"&A2&\"</column>\"& CHAR(10) &\"<column name='chi'>\"&B2&\"</column>\"&CHAR(10)&\"<column name='jpchi'>\"&C2&\"</column>\"&CHAR(10)&\"<column name='jp'>\"&D2&\"</column>\"&CHAR(10)&\"<column name='jpeng'>\"&E2&\"</column>\"&CHAR(10)&\"<column name='eng'>\"&F2&\"</column>\"&CHAR(10) &\"</table>\"","v":"<table name='jp_place'>\n<column name='id'>1</column>\n<column name='chi'>店</column>\n<column name='jpchi'>店</column>\n<column name='jp'>みせ</column>\n<column name='jpeng'>mise</column>\n<column name='eng'>shop</column>\n</table>"}]
[2,"車站","駅","えき","eki","station",null,{"$f":"\"<table name='jp_place'>\"& CHAR(10) &\"<column name='id'>\"&A3&\"</column>\"& CHAR(10) &\"<column name='chi'>\"&B3&\"</column>\"&CHAR(10)&\"<column name='jpchi'>\"&C3&\"</column>\"&CHAR(10)&\"<column name='jp'>\"&D3&\"</column>\"&CHAR(10)&\"<column name='jpeng'>\"&E3&\"</column>\"&CHAR(10)&\"<column name='eng'>\"&F3&\"</column>\"&CHAR(10) &\"</table>\"","v":"<table name='jp_place'>\n<column name='id'>2</column>\n<column name='chi'>車站</column>\n<column name='jpchi'>駅</column>\n<column name='jp'>えき</column>\n<column name='jpeng'>eki</column>\n<column name='eng'>station</column>\n</table>"}]
[3,"道路","道","みち","michi","road",null,"<table name='jp_place'>\n<column name='id'>3</column>\n<column name='chi'>道路</column>\n<column name='jpchi'>道</column>\n<column name='jp'>みち</column>\n<column name='jpeng'>michi</column>\n<column name='eng'>road</column>\n</table>"]
[4,"家","家","いえ","ie","home",null,"<table name='jp_place'>\n<column name='id'>4</column>\n<column name='chi'>家</column>\n<column name='jpchi'>家</column>\n<column name='jp'>いえ</column>\n<column name='jpeng'>ie</column>\n<column name='eng'>home</column>\n</table>"]
[5,"房間","部屋","へや","heya","room",null,"<table name='jp_place'>\n<column name='id'>5</column>\n<column name='chi'>房間</column>\n<column name='jpchi'>部屋</column>\n<column name='jp'>へや</column>\n<column name='jpeng'>heya</column>\n<column name='eng'>room</column>\n</table>"]
[6,"建築物","建物","たてもの","tatemono","building",null,"<table name='jp_place'>\n<column name='id'>6</column>\n<column name='chi'>建築物</column>\n<column name='jpchi'>建物</column>\n<column name='jp'>たてもの</column>\n<column name='jpeng'>tatemono</column>\n<column name='eng'>building</column>\n</table>"]
[7,"餐廳","レストラン","れすとらん","resutorann","restaurant",null,"<table name='jp_place'>\n<column name='id'>7</column>\n<column name='chi'>餐廳</column>\n<column name='jpchi'>レストラン</column>\n<column name='jp'>れすとらん</column>\n<column name='jpeng'>resutorann</column>\n<column name='eng'>restaurant</column>\n</table>"]
[8,"公司","会社","かいしゃ","kaisya","company",null,"<table name='jp_place'>\n<column name='id'>8</column>\n<column name='chi'>公司</column>\n<column name='jpchi'>会社</column>\n<column name='jp'>かいしゃ</column>\n<column name='jpeng'>kaisya</column>\n<column name='eng'>company</column>\n</table>"]
[9,"銀行","銀行","ぎんこう","ginnkou","bank",null,"<table name='jp_place'>\n<column name='id'>9</column>\n<column name='chi'>銀行</column>\n<column name='jpchi'>銀行</column>\n<column name='jp'>ぎんこう</column>\n<column name='jpeng'>ginnkou</column>\n<column name='eng'>bank</column>\n</table>"]
[10,"公園","公園","こうえん","kouenn","park",null,"<table name='jp_place'>\n<column name='id'>10</column>\n<column name='chi'>公園</column>\n<column name='jpchi'>公園</column>\n<column name='jp'>こうえん</column>\n<column name='jpeng'>kouenn</column>\n<column name='eng'>park</column>\n</table>"]
[11,"醫院","病院","びょういん","byouinn","hospital",null,"<table name='jp_place'>\n<column name='id'>11</column>\n<column name='chi'>醫院</column>\n<column name='jpchi'>病院</column>\n<column name='jp'>びょういん</column>\n<column name='jpeng'>byouinn</column>\n<column name='eng'>hospital</column>\n</table>"]
[12,"學校","学校","がっこう","gakkou","school",null,"<table name='jp_place'>\n<column name='id'>12</column>\n<column name='chi'>學校</column>\n<column name='jpchi'>学校</column>\n<column name='jp'>がっこう</column>\n<column name='jpeng'>gakkou</column>\n<column name='eng'>school</column>\n</table>"]
[13,"教室","教室","きょうしつ","kyousitsu","classroom",null,"<table name='jp_place'>\n<column name='id'>13</column>\n<column name='chi'>教室</column>\n<column name='jpchi'>教室</column>\n<column name='jp'>きょうしつ</column>\n<column name='jpeng'>kyousitsu</column>\n<column name='eng'>classroom</column>\n</table>"]
[14,"地鐵","地下鉄","ちかてつ","chikatetsu","subway",null,"<table name='jp_place'>\n<column name='id'>14</column>\n<column name='chi'>地鐵</column>\n<column name='jpchi'>地下鉄</column>\n<column name='jp'>ちかてつ</column>\n<column name='jpeng'>chikatetsu</column>\n<column name='eng'>subway</column>\n</table>"]
[15,"公車站","バス停","ばすてい","basutei","bus station",null,"<table name='jp_place'>\n<column name='id'>15</column>\n<column name='chi'>公車站</column>\n<column name='jpchi'>バス停</column>\n<column name='jp'>ばすてい</column>\n<column name='jpeng'>basutei</column>\n<column name='eng'>bus station</column>\n</table>"]
[16,"咖啡廳、茶館","喫茶店","きっさてん","kissatenn","cof'e",null,"<table name='jp_place'>\n<column name='id'>16</column>\n<column name='chi'>咖啡廳、茶館</column>\n<column name='jpchi'>喫茶店</column>\n<column name='jp'>きっさてん</column>\n<column name='jpeng'>kissatenn</column>\n<column name='eng'>cof'e</column>\n</table>"]
[17,"郵局","郵便局","ゆうびんきょく","yuubinnkyoku","post office",null,"<table name='jp_place'>\n<column name='id'>17</column>\n<column name='chi'>郵局</column>\n<column name='jpchi'>郵便局</column>\n<column name='jp'>ゆうびんきょく</column>\n<column name='jpeng'>yuubinnkyoku</column>\n<column name='eng'>post office</column>\n</table>"]
[18,"圖書館","図書館","としょかん","tosyokann","library",null,"<table name='jp_place'>\n<column name='id'>18</column>\n<column name='chi'>圖書館</column>\n<column name='jpchi'>図書館</column>\n<column name='jp'>としょかん</column>\n<column name='jpeng'>tosyokann</column>\n<column name='eng'>library</column>\n</table>"]
[19,"電影院","映画館","えいがかん","eigakann","cinema",null,"<table name='jp_place'>\n<column name='id'>19</column>\n<column name='chi'>電影院</column>\n<column name='jpchi'>映画館</column>\n<column name='jp'>えいがかん</column>\n<column name='jpeng'>eigakann</column>\n<column name='eng'>cinema</column>\n</table>"]
[20,"十字路口","交差点","こうさてん","kousatenn","crossroads",null,"<table name='jp_place'>\n<column name='id'>20</column>\n<column name='chi'>十字路口</column>\n<column name='jpchi'>交差点</column>\n<column name='jp'>こうさてん</column>\n<column name='jpeng'>kousatenn</column>\n<column name='eng'>crossroads</column>\n</table>"]
[21,"入口","入り口","いりぐち","iriguchi","entrance",null,"<table name='jp_place'>\n<column name='id'>21</column>\n<column name='chi'>入口</column>\n<column name='jpchi'>入り口</column>\n<column name='jp'>いりぐち</column>\n<column name='jpeng'>iriguchi</column>\n<column name='eng'>entrance</column>\n</table>"]
[22,"出口","出口","でぐち","deguchi","export",null,"<table name='jp_place'>\n<column name='id'>22</column>\n<column name='chi'>出口</column>\n<column name='jpchi'>出口</column>\n<column name='jp'>でぐち</column>\n<column name='jpeng'>deguchi</column>\n<column name='eng'>export</column>\n</table>"]
[23,"公寓","アパート","あぱーと","apa-to","condominium",null,"<table name='jp_place'>\n<column name='id'>23</column>\n<column name='chi'>公寓</column>\n<column name='jpchi'>アパート</column>\n<column name='jp'>あぱーと</column>\n<column name='jpeng'>apa-to</column>\n<column name='eng'>condominium</column>\n</table>"]
[24,"百貨公司","デパート","でばーと","depa-to","department store",null,"<table name='jp_place'>\n<column name='id'>24</column>\n<column name='chi'>百貨公司</column>\n<column name='jpchi'>デパート</column>\n<column name='jp'>でばーと</column>\n<column name='jpeng'>depa-to</column>\n<column name='eng'>department store</column>\n</table>"]
[25,"電梯(elevator)","エレベーター","えれべーたー","erebe-ta-","elevator",null,"<table name='jp_place'>\n<column name='id'>25</column>\n<column name='chi'>電梯(elevator)</column>\n<column name='jpchi'>エレベーター</column>\n<column name='jp'>えれべーたー</column>\n<column name='jpeng'>erebe-ta-</column>\n<column name='eng'>elevator</column>\n</table>"]
[26,"旅館、飯店","ホテル","ほてる","hoteru","hotel",null,"<table name='jp_place'>\n<column name='id'>26</column>\n<column name='chi'>旅館、飯店</column>\n<column name='jpchi'>ホテル</column>\n<column name='jp'>ほてる</column>\n<column name='jpeng'>hoteru</column>\n<column name='eng'>hotel</column>\n</table>"]
[27,"廁所","トイレ","といれ","toire","toilet",null,"<table name='jp_place'>\n<column name='id'>27</column>\n<column name='chi'>廁所</column>\n<column name='jpchi'>トイレ</column>\n<column name='jp'>といれ</column>\n<column name='jpeng'>toire</column>\n<column name='eng'>toilet</column>\n</table>"]
[28,"場所","場所","ばしょ","basyo","place",null,"<table name='jp_place'>\n<column name='id'>28</column>\n<column name='chi'>場所</column>\n<column name='jpchi'>場所</column>\n<column name='jp'>ばしょ</column>\n<column name='jpeng'>basyo</column>\n<column name='eng'>place</column>\n</table>"]
[29,"地點、地方","所","ところ","tokoro","location",null,"<table name='jp_place'>\n<column name='id'>29</column>\n<column name='chi'>地點、地方</column>\n<column name='jpchi'>所</column>\n<column name='jp'>ところ</column>\n<column name='jpeng'>tokoro</column>\n<column name='eng'>location</column>\n</table>"]

{"sheet":"食物","index":3,"n_rows":25,"n_cols":8,"rows_kept":25,"cut":false,"hidden":false,"merged":[]}
[{"$f":"COUNT(A2:A100)","v":24},"中文","日文","平假名讀音","羅馬拼音打字","英文"]
[1,"食物","食べ物","たべもの","tabemono","food",null,{"$f":"\"<table name='jp_food'>\"& CHAR(10) &\"<column name='id'>\"&A2&\"</column>\"& CHAR(10) &\"<column name='chi'>\"&B2&\"</column>\"&CHAR(10)&\"<column name='jpchi'>\"&C2&\"</column>\"&CHAR(10)&\"<column name='jp'>\"&D2&\"</column>\"&CHAR(10)&\"<column name='jpeng'>\"&E2&\"</column>\"&CHAR(10)&\"<column name='eng'>\"&F2&\"</column>\"&CHAR(10) &\"</table>\"","v":"<table name='jp_food'>\n<column name='id'>1</column>\n<column name='chi'>食物</column>\n<column name='jpchi'>食べ物</column>\n<column name='jp'>たべもの</column>\n<column name='jpeng'>tabemono</column>\n<column name='eng'>food</column>\n</table>"}]
[2,"飯","ご飯","ごはん","gohann","rice",null,{"$f":"\"<table name='jp_food'>\"& CHAR(10) &\"<column name='id'>\"&A3&\"</column>\"& CHAR(10) &\"<column name='chi'>\"&B3&\"</column>\"&CHAR(10)&\"<column name='jpchi'>\"&C3&\"</column>\"&CHAR(10)&\"<column name='jp'>\"&D3&\"</column>\"&CHAR(10)&\"<column name='jpeng'>\"&E3&\"</column>\"&CHAR(10)&\"<column name='eng'>\"&F3&\"</column>\"&CHAR(10) &\"</table>\"","v":"<table name='jp_food'>\n<column name='id'>2</column>\n<column name='chi'>飯</column>\n<column name='jpchi'>ご飯</column>\n<column name='jp'>ごはん</column>\n<column name='jpeng'>gohann</column>\n<column name='eng'>rice</column>\n</table>"}]
[3,"水果","果物","くだもの","kudamono","fruit",null,"<table name='jp_food'>\n<column name='id'>3</column>\n<column name='chi'>水果</column>\n<column name='jpchi'>果物</column>\n<column name='jp'>くだもの</column>\n<column name='jpeng'>kudamono</column>\n<column name='eng'>fruit</column>\n</table>"]
[4,"點心","お菓子","おかし","okasi","dessert",null,"<table name='jp_food'>\n<column name='id'>4</column>\n<column name='chi'>點心</column>\n<column name='jpchi'>お菓子</column>\n<column name='jp'>おかし</column>\n<column name='jpeng'>okasi</column>\n<column name='eng'>dessert</column>\n</table>"]
[5,"咖哩","カレー","かれー","kare-","curry",null,"<table name='jp_food'>\n<column name='id'>5</column>\n<column name='chi'>咖哩</column>\n<column name='jpchi'>カレー</column>\n<column name='jp'>かれー</column>\n<column name='jpeng'>kare-</column>\n<column name='eng'>curry</column>\n</table>"]
[6,"麵包","パン","ぱん","pann","bread",null,"<table name='jp_food'>\n<column name='id'>6</column>\n<column name='chi'>麵包</column>\n<column name='jpchi'>パン</column>\n<column name='jp'>ぱん</column>\n<column name='jpeng'>pann</column>\n<column name='eng'>bread</column>\n</table>"]
[7,"料理","料理","りょうり","ryouri","cooking",null,"<table name='jp_food'>\n<column name='id'>7</column>\n<column name='chi'>料理</column>\n<column name='jpchi'>料理</column>\n<column name='jp'>りょうり</column>\n<column name='jpeng'>ryouri</column>\n<column name='eng'>cooking</column>\n</table>"]
[8,"魚","魚","さかな","sakana","fish",null,"<table name='jp_food'>\n<column name='id'>8</column>\n<column name='chi'>魚</column>\n<column name='jpchi'>魚</column>\n<column name='jp'>さかな</column>\n<column name='jpeng'>sakana</column>\n<column name='eng'>fish</column>\n</table>"]
[9,"肉","肉","にく","niku","meat",null,"<table name='jp_food'>\n<column name='id'>9</column>\n<column name='chi'>肉</column>\n<column name='jpchi'>肉</column>\n<column name='jp'>にく</column>\n<column name='jpeng'>niku</column>\n<column name='eng'>meat</column>\n</table>"]
[10,"牛肉","牛肉","ぎゅうにく","gyuuniku","beef",null,"<table name='jp_food'>\n<column name='id'>10</column>\n<column name='chi'>牛肉</column>\n<column name='jpchi'>牛肉</column>\n<column name='jp'>ぎゅうにく</column>\n<column name='jpeng'>gyuuniku</column>\n<column name='eng'>beef</column>\n</table>"]
[11,"豬肉","豚肉","ぶたにく","butaniku","pork",null,"<table name='jp_food'>\n<column name='id'>11</column>\n<column name='chi'>豬肉</column>\n<column name='jpchi'>豚肉</column>\n<column name='jp'>ぶたにく</column>\n<column name='jpeng'>butaniku</column>\n<column name='eng'>pork</column>\n</table>"]
[12,"鶏肉","鶏肉","とりにく","toriniku","chicken",null,"<table name='jp_food'>\n<column name='id'>12</column>\n<column name='chi'>鶏肉</column>\n<column name='jpchi'>鶏肉</column>\n<column name='jp'>とりにく</column>\n<column name='jpeng'>toriniku</column>\n<column name='eng'>chicken</column>\n</table>"]
[13,"蔬菜","野菜","やさい","yasai","vegetables",null,"<table name='jp_food'>\n<column name='id'>13</column>\n<column name='chi'>蔬菜</column>\n<column name='jpchi'>野菜</column>\n<column name='jp'>やさい</column>\n<column name='jpeng'>yasai</column>\n<column name='eng'>vegetables</column>\n</table>"]
[14,"蛋","玉子、卵、たまご","たまご","tamago","egg",null,"<table name='jp_food'>\n<column name='id'>14</column>\n<column name='chi'>蛋</column>\n<column name='jpchi'>玉子、卵、たまご</column>\n<column name='jp'>たまご</column>\n<column name='jpeng'>tamago</column>\n<column name='eng'>egg</column>\n</table>"]
[15,"醬油","醤油","しょうゆ","syouyu","soy sauce",null,"<table name='jp_food'>\n<column name='id'>15</column>\n<column name='chi'>醬油</column>\n<column name='jpchi'>醤油</column>\n<column name='jp'>しょうゆ</column>\n<column name='jpeng'>syouyu</column>\n<column name='eng'>soy sauce</column>\n</table>"]
[16,"飲料","飲み物","のみもの","nomimono","drink",null,"<table name='jp_food'>\n<column name='id'>16</column>\n<column name='chi'>飲料</column>\n<column name='jpchi'>飲み物</column>\n<column name='jp'>のみもの</column>\n<column name='jpeng'>nomimono</column>\n<column name='eng'>drink</column>\n</table>"]
[17,"水","水","みず","mizu","water",null,"<table name='jp_food'>\n<column name='id'>17</column>\n<column name='chi'>水</column>\n<column name='jpchi'>水</column>\n<column name='jp'>みず</column>\n<column name='jpeng'>mizu</column>\n<column name='eng'>water</column>\n</table>"]
[18,"茶","お茶","おちゃ","ocha","tea",null,"<table name='jp_food'>\n<column name='id'>18</column>\n<column name='chi'>茶</column>\n<column name='jpchi'>お茶</column>\n<column name='jp'>おちゃ</column>\n<column name='jpeng'>ocha</column>\n<column name='eng'>tea</column>\n</table>"]
[19,"紅茶","紅茶","こうちゃ","koucha","black tea",null,"<table name='jp_food'>\n<column name='id'>19</column>\n<column name='chi'>紅茶</column>\n<column name='jpchi'>紅茶</column>\n<column name='jp'>こうちゃ</column>\n<column name='jpeng'>koucha</column>\n<column name='eng'>black tea</column>\n</table>"]
[20,"牛奶","牛乳","ぎゅうにゅう","gyuunyuu","milk",null,"<table name='jp_food'>\n<column name='id'>20</column>\n<column name='chi'>牛奶</column>\n<column name='jpchi'>牛乳</column>\n<column name='jp'>ぎゅうにゅう</column>\n<column name='jpeng'>gyuunyuu</column>\n<column name='eng'>milk</column>\n</table>"]
[21,"酒","お酒","おさけ","osake","ligueur",null,"<table name='jp_food'>\n<column name='id'>21</column>\n<column name='chi'>酒</column>\n<column name='jpchi'>お酒</column>\n<column name='jp'>おさけ</column>\n<column name='jpeng'>osake</column>\n<column name='eng'>ligueur</column>\n</table>"]
[22,"啤酒","ビール","びーる","bi-ru","beer",null,"<table name='jp_food'>\n<column name='id'>22</column>\n<column name='chi'>啤酒</column>\n<column name='jpchi'>ビール</column>\n<column name='jp'>びーる</column>\n<column name='jpeng'>bi-ru</column>\n<column name='eng'>beer</column>\n</table>"]
[23,"咖啡","コーヒー","こーひー","ko-hi-","coffee",null,"<table name='jp_food'>\n<column name='id'>23</column>\n<column name='chi'>咖啡</column>\n<column name='jpchi'>コーヒー</column>\n<column name='jp'>こーひー</column>\n<column name='jpeng'>ko-hi-</column>\n<column name='eng'>coffee</column>\n</table>"]
[24,"果汁","ジュース","じゅーす","jyu-su","juice",null,"<table name='jp_food'>\n<column name='id'>24</column>\n<column name='chi'>果汁</column>\n<column name='jpchi'>ジュース</column>\n<column name='jp'>じゅーす</column>\n<column name='jpeng'>jyu-su</column>\n<column name='eng'>juice</column>\n</table>"]

{"sheet":"物品","index":4,"n_rows":37,"n_cols":8,"rows_kept":37,"cut":false,"hidden":false,"merged":[]}
[{"$f":"COUNT(A2:A100)","v":36},"中文","日文","平假名讀音","羅馬拼音打字","英文"]
[1,"衣服","服","ふく","fuku","clothes",null,{"$f":"\"<table name='jp_thing'>\"& CHAR(10) &\"<column name='id'>\"&A2&\"</column>\"& CHAR(10) &\"<column name='chi'>\"&B2&\"</column>\"&CHAR(10)&\"<column name='jpchi'>\"&C2&\"</column>\"&CHAR(10)&\"<column name='jp'>\"&D2&\"</column>\"&CHAR(10)&\"<column name='jpeng'>\"&E2&\"</column>\"&CHAR(10)&\"<column name='eng'>\"&F2&\"</column>\"&CHAR(10) &\"</table>\"","v":"<table name='jp_thing'>\n<column name='id'>1</column>\n<column name='chi'>衣服</column>\n<column name='jpchi'>服</column>\n<column name='jp'>ふく</column>\n<column name='jpeng'>fuku</column>\n<column name='eng'>clothes</column>\n</table>"}]
[2,"西服","洋服","ようふく","youfuku","suits",null,{"$f":"\"<table name='jp_thing'>\"& CHAR(10) &\"<column name='id'>\"&A3&\"</column>\"& CHAR(10) &\"<column name='chi'>\"&B3&\"</column>\"&CHAR(10)&\"<column name='jpchi'>\"&C3&\"</column>\"&CHAR(10)&\"<column name='jp'>\"&D3&\"</column>\"&CHAR(10)&\"<column name='jpeng'>\"&E3&\"</column>\"&CHAR(10)&\"<column name='eng'>\"&F3&\"</column>\"&CHAR(10) &\"</table>\"","v":"<table name='jp_thing'>\n<column name='id'>2</column>\n<column name='chi'>西服</column>\n<column name='jpchi'>洋服</column>\n<column name='jp'>ようふく</column>\n<column name='jpeng'>youfuku</column>\n<column name='eng'>suits</column>\n</table>"}]
[3,"大衣、外衣","コート","こーと","ko-to","coat",null,"<table name='jp_thing'>\n<column name='id'>3</column>\n<column name='chi'>大衣、外衣</column>\n<column name='jpchi'>コート</column>\n<column name='jp'>こーと</column>\n<column name='jpeng'>ko-to</column>\n<column name='eng'>coat</column>\n</table>"]
[4,"襯衫(shirt)","シャツ","しゃつ","syatsu","shirt",null,"<table name='jp_thing'>\n<column name='id'>4</column>\n<column name='chi'>襯衫(shirt)</column>\n<column name='jpchi'>シャツ</column>\n<column name='jp'>しゃつ</column>\n<column name='jpeng'>syatsu</column>\n<column name='eng'>shirt</column>\n</table>"]
[5,"T裇 (T shirt)","Tシャツ","Tしゃつ","Tsyatsu","T shirt",null,"<table name='jp_thing'>\n<column name='id'>5</column>\n<column name='chi'>T裇 (T shirt)</column>\n<column name='jpchi'>Tシャツ</column>\n<column name='jp'>Tしゃつ</column>\n<column name='jpeng'>Tsyatsu</column>\n<column name='eng'>T shirt</column>\n</table>"]
[6,"毛衣(sweater)","セーター","せーたー","se-ta-","sweater",null,"<table name='jp_thing'>\n<column name='id'>6</column>\n<column name='chi'>毛衣(sweater)</column>\n<column name='jpchi'>セーター</column>\n<column name='jp'>せーたー</column>\n<column name='jpeng'>se-ta-</column>\n<column name='eng'>sweater</column>\n</table>"]
[7,"口袋(pocket)","ポケット","ぽけっと","poketto","pocket",null,"<table name='jp_thing'>\n<column name='id'>7</column>\n<column name='chi'>口袋(pocket)</column>\n<column name='jpchi'>ポケット</column>\n<column name='jp'>ぽけっと</column>\n<column name='jpeng'>poketto</column>\n<column name='eng'>pocket</column>\n</table>"]
[8,"鈕扣","ボタン","ぼたん","botann","Button",null,"<table name='jp_thing'>\n<column name='id'>8</column>\n<column name='chi'>鈕扣</column>\n<column name='jpchi'>ボタン</column>\n<column name='jp'>ぼたん</column>\n<column name='jpeng'>botann</column>\n<column name='eng'>Button</column>\n</table>"]
[9,"長褲","ズボン","ずぼん","zubonn","trousers",null,"<table name='jp_thing'>\n<column name='id'>9</column>\n<column name='chi'>長褲</column>\n<column name='jpchi'>ズボン</column>\n<column name='jp'>ずぼん</column>\n<column name='jpeng'>zubonn</column>\n<column name='eng'>trousers</column>\n</table>"]
[10,"短褲","半ズボン","はんズボン","hannzubonn","shorts",null,"<table name='jp_thing'>\n<column name='id'>10</column>\n<column name='chi'>短褲</column>\n<column name='jpchi'>半ズボン</column>\n<column name='jp'>はんズボン</column>\n<column name='jpeng'>hannzubonn</column>\n<column name='eng'>shorts</column>\n</table>"]
[11,"裙子(skirt)","スカート","すかーと","suka-to","skirt",null,"<table name='jp_thing'>\n<column name='id'>11</column>\n<column name='chi'>裙子(skirt)</column>\n<column name='jpchi'>スカート</column>\n<column name='jp'>すかーと</column>\n<column name='jpeng'>suka-to</column>\n<column name='eng'>skirt</column>\n</table>"]
[12,"鞋子","靴","くつ","kutsu","shoes",null,"<table name='jp_thing'>\n<column name='id'>12</column>\n<column name='chi'>鞋子</column>\n<column name='jpchi'>靴</column>\n<column name='jp'>くつ</column>\n<column name='jpeng'>kutsu</column>\n<column name='eng'>shoes</column>\n</table>"]
[13,"襪子","靴下","くつした","kutsusita","sock",null,"<table name='jp_thing'>\n<column name='id'>13</column>\n<column name='chi'>襪子</column>\n<column name='jpchi'>靴下</column>\n<column name='jp'>くつした</column>\n<column name='jpeng'>kutsusita</column>\n<column name='eng'>sock</column>\n</table>"]
[14,"書","本","ほん","honn","book",null,"<table name='jp_thing'>\n<column name='id'>14</column>\n<column name='chi'>書</column>\n<column name='jpchi'>本</column>\n<column name='jp'>ほん</column>\n<column name='jpeng'>honn</column>\n<column name='eng'>book</column>\n</table>"]
[15,"紙","紙","かみ","kami","paper",null,"<table name='jp_thing'>\n<column name='id'>15</column>\n<column name='chi'>紙</column>\n<column name='jpchi'>紙</column>\n<column name='jp'>かみ</column>\n<column name='jpeng'>kami</column>\n<column name='eng'>paper</column>\n</table>"]
[16,"地圖","地図","ちず","chizu","map",null,"<table name='jp_thing'>\n<column name='id'>16</column>\n<column name='chi'>地圖</column>\n<column name='jpchi'>地図</column>\n<column name='jp'>ちず</column>\n<column name='jpeng'>chizu</column>\n<column name='eng'>map</column>\n</table>"]
[17,"字典","辞書","じしょ","jisyo","dictionary",null,"<table name='jp_thing'>\n<column name='id'>17</column>\n<column name='chi'>字典</column>\n<column name='jpchi'>辞書</column>\n<column name='jp'>じしょ</column>\n<column name='jpeng'>jisyo</column>\n<column name='eng'>dictionary</column>\n</table>"]
[18,"信","手紙","てがみ","tegami","letter",null,"<table name='jp_thing'>\n<column name='id'>18</column>\n<column name='chi'>信</column>\n<column name='jpchi'>手紙</column>\n<column name='jp'>てがみ</column>\n<column name='jpeng'>tegami</column>\n<column name='eng'>letter</column>\n</table>"]
[19,"郵票","切手","きって","kitte","lottery",null,"<table name='jp_thing'>\n<column name='id'>19</column>\n<column name='chi'>郵票</column>\n<column name='jpchi'>切手</column>\n<column name='jp'>きって</column>\n<column name='jpeng'>kitte</column>\n<column name='eng'>lottery</column>\n</table>"]
[20,"書架、書櫃","本棚","ほんだな","honndana","bookshelf",null,"<table name='jp_thing'>\n<column name='id'>20</column>\n<column name='chi'>書架、書櫃</column>\n<column name='jpchi'>本棚</column>\n<column name='jp'>ほんだな</column>\n<column name='jpeng'>honndana</column>\n<column name='eng'>bookshelf</column>\n</table>"]
[21,"鉛筆","鉛筆","えんぴつ","ennpitsu","pencil",null,"<table name='jp_thing'>\n<column name='id'>21</column>\n<column name='chi'>鉛筆</column>\n<column name='jpchi'>鉛筆</column>\n<column name='jp'>えんぴつ</column>\n<column name='jpeng'>ennpitsu</column>\n<column name='eng'>pencil</column>\n</table>"]
[22,"尺","定規","じょうぎ","jyougi","ruler",null,"<table name='jp_thing'>\n<column name='id'>22</column>\n<column name='chi'>尺</column>\n<column name='jpchi'>定規</column>\n<column name='jp'>じょうぎ</column>\n<column name='jpeng'>jyougi</column>\n<column name='eng'>ruler</column>\n</table>"]
[23,"鋼筆","万年筆","まんねんひつ","mannnennhitsu","pen",null,"<table name='jp_thing'>\n<column name='id'>23</column>\n<column name='chi'>鋼筆</column>\n<column name='jpchi'>万年筆</column>\n<column name='jp'>まんねんひつ</column>\n<column name='jpeng'>mannnennhitsu</column>\n<column name='eng'>pen</column>\n</table>"]
[24,"橡皮擦","消しゴム","けしゴム","kesigomu","eraser",null,"<table name='jp_thing'>\n<column name='id'>24</column>\n<column name='chi'>橡皮擦</column>\n<column name='jpchi'>消しゴム</column>\n<column name='jp'>けしゴム</column>\n<column name='jpeng'>kesigomu</column>\n<column name='eng'>eraser</column>\n</table>"]
[25,"筆","ペン","ぺん","penn","pen",null,"<table name='jp_thing'>\n<column name='id'>25</column>\n<column name='chi'>筆</column>\n<column name='jpchi'>ペン</column>\n<column name='jp'>ぺん</column>\n<column name='jpeng'>penn</column>\n<column name='eng'>pen</column>\n</table>"]
[26,"筆記本","ノート","のーと","no-to","notebook",null,"<table name='jp_thing'>\n<column name='id'>26</column>\n<column name='chi'>筆記本</column>\n<column name='jpchi'>ノート</column>\n<column name='jp'>のーと</column>\n<column name='jpeng'>no-to</column>\n<column name='eng'>notebook</column>\n</table>"]
[27,"原子筆","ボールペン","ぼーるぺん","bo-rupenn","ball-point pen",null,"<table name='jp_thing'>\n<column name='id'>27</column>\n<column name='chi'>原子筆</column>\n<column name='jpchi'>ボールペン</column>\n<column name='jp'>ぼーるぺん</column>\n<column name='jpeng'>bo-rupenn</column>\n<column name='eng'>ball-point pen</column>\n</table>"]
[28,"自動鉛筆","シャープペンシル","しゃーぷぺんしる","sya-pupennsiru","mechanical pencil",null,"<table name='jp_thing'>\n<column name='id'>28</column>\n<column name='chi'>自動鉛筆</column>\n<column name='jpchi'>シャープペンシル</column>\n<column name='jp'>しゃーぷぺんしる</column>\n<column name='jpeng'>sya-pupennsiru</column>\n<column name='eng'>mechanical pencil</column>\n</table>"]
[29,"電話","電話","でんわ","dennwa","phone",null,"<table name='jp_thing'>\n<column name='id'>29</column>\n<column name='chi'>電話</column>\n<column name='jpchi'>電話</column>\n<column name='jp'>でんわ</column>\n<column name='jpeng'>dennwa</column>\n<column name='eng'>phone</column>\n</table>"]
[30,"冰箱","冷蔵庫","れいぞうこ","reizouko","refrigerator",null,"<table name='jp_thing'>\n<column name='id'>30</column>\n<column name='chi'>冰箱</column>\n<column name='jpchi'>冷蔵庫</column>\n<column name='jp'>れいぞうこ</column>\n<column name='jpeng'>reizouko</column>\n<column name='eng'>refrigerator</column>\n</table>"]
[31,"洗衣機","洗濯機","せんたくき","senntakuki","washing machine",null,"<table name='jp_thing'>\n<column name='id'>31</column>\n<column name='chi'>洗衣機</column>\n<column name='jpchi'>洗濯機</column>\n<column name='jp'>せんたくき</column>\n<column name='jpeng'>senntakuki</column>\n<column name='eng'>washing machine</column>\n</table>"]
[32,"電視","テレビ","てれび","terebi","television",null,"<table name='jp_thing'>\n<column name='id'>32</column>\n<column name='chi'>電視</column>\n<column name='jpchi'>テレビ</column>\n<column name='jp'>てれび</column>\n<column name='jpeng'>terebi</column>\n<column name='eng'>television</column>\n</table>"]
[33,"影片","ビデオ","びでお","bideo","film",null,"<table name='jp_thing'>\n<column name='id'>33</column>\n<column name='chi'>影片</column>\n<column name='jpchi'>ビデオ</column>\n<column name='jp'>びでお</column>\n<column name='jpeng'>bideo</column>\n<column name='eng'>film</column>\n</table>"]
[34,"相機","カメラ","かめら","kamera","camera",null,"<table name='jp_thing'>\n<column name='id'>34</column>\n<column name='chi'>相機</column>\n<column name='jpchi'>カメラ</column>\n<column name='jp'>かめら</column>\n<column name='jpeng'>kamera</column>\n<column name='eng'>camera</column>\n</table>"]
[35,"電腦","パソコン","ぱそこん","pasokonn","computer",null,"<table name='jp_thing'>\n<column name='id'>35</column>\n<column name='chi'>電腦</column>\n<column name='jpchi'>パソコン</column>\n<column name='jp'>ぱそこん</column>\n<column name='jpeng'>pasokonn</column>\n<column name='eng'>computer</column>\n</table>"]
[36,"冷氣","エアコン","えあこん","eakonn","air conditioner",null,"<table name='jp_thing'>\n<column name='id'>36</column>\n<column name='chi'>冷氣</column>\n<column name='jpchi'>エアコン</column>\n<column name='jp'>えあこん</column>\n<column name='jpeng'>eakonn</column>\n<column name='eng'>air conditioner</column>\n</table>"]

{"sheet":"方位","index":5,"n_rows":17,"n_cols":8,"rows_kept":17,"cut":false,"hidden":false,"merged":[]}
[{"$f":"COUNT(A2:A100)","v":16},"中文","日文","平假名讀音","羅馬拼音打字","英文"]
[1,"上面","上","うえ","ue","above",null,{"$f":"\"<table name='jp_position'>\"& CHAR(10) &\"<column name='id'>\"&A2&\"</column>\"& CHAR(10) &\"<column name='chi'>\"&B2&\"</column>\"&CHAR(10)&\"<column name='jpchi'>\"&C2&\"</column>\"&CHAR(10)&\"<column name='jp'>\"&D2&\"</column>\"&CHAR(10)&\"<column name='jpeng'>\"&E2&\"</column>\"&CHAR(10)&\"<column name='eng'>\"&F2&\"</column>\"&CHAR(10) &\"</table>\"","v":"<table name='jp_position'>\n<column name='id'>1</column>\n<column name='chi'>上面</column>\n<column name='jpchi'>上</column>\n<column name='jp'>うえ</column>\n<column name='jpeng'>ue</column>\n<column name='eng'>above</column>\n</table>"}]
[2,"下面","下","した","sita","below",null,{"$f":"\"<table name='jp_position'>\"& CHAR(10) &\"<column name='id'>\"&A3&\"</column>\"& CHAR(10) &\"<column name='chi'>\"&B3&\"</column>\"&CHAR(10)&\"<column name='jpchi'>\"&C3&\"</column>\"&CHAR(10)&\"<column name='jp'>\"&D3&\"</column>\"&CHAR(10)&\"<column name='jpeng'>\"&E3&\"</column>\"&CHAR(10)&\"<column name='eng'>\"&F3&\"</column>\"&CHAR(10) &\"</table>\"","v":"<table name='jp_position'>\n<column name='id'>2</column>\n<column name='chi'>下面</column>\n<column name='jpchi'>下</column>\n<column name='jp'>した</column>\n<column name='jpeng'>sita</column>\n<column name='eng'>below</column>\n</table>"}]
[3,"左邊","左","ひだり","hidari","left",null,"<table name='jp_position'>\n<column name='id'>3</column>\n<column name='chi'>左邊</column>\n<column name='jpchi'>左</column>\n<column name='jp'>ひだり</column>\n<column name='jpeng'>hidari</column>\n<column name='eng'>left</column>\n</table>"]
[4,"右邊","右","みぎ","migi","right",null,"<table name='jp_position'>\n<column name='id'>4</column>\n<column name='chi'>右邊</column>\n<column name='jpchi'>右</column>\n<column name='jp'>みぎ</column>\n<column name='jpeng'>migi</column>\n<column name='eng'>right</column>\n</table>"]
[5,"中間","中","なか","naka","intermidiate",null,"<table name='jp_position'>\n<column name='id'>5</column>\n<column name='chi'>中間</column>\n<column name='jpchi'>中</column>\n<column name='jp'>なか</column>\n<column name='jpeng'>naka</column>\n<column name='eng'>intermidiate</column>\n</table>"]
[6,"前面","前","まえ","mae","front",null,"<table name='jp_position'>\n<column name='id'>6</column>\n<column name='chi'>前面</column>\n<column name='jpchi'>前</column>\n<column name='jp'>まえ</column>\n<column name='jpeng'>mae</column>\n<column name='eng'>front</column>\n</table>"]
[7,"後面","後ろ","うしろ","usiro","behind",null,"<table name='jp_position'>\n<column name='id'>7</column>\n<column name='chi'>後面</column>\n<column name='jpchi'>後ろ</column>\n<column name='jp'>うしろ</column>\n<column name='jpeng'>usiro</column>\n<column name='eng'>behind</column>\n</table>"]
[8,"東方","東","ひがし","higasi","eastern",null,"<table name='jp_position'>\n<column name='id'>8</column>\n<column name='chi'>東方</column>\n<column name='jpchi'>東</column>\n<column name='jp'>ひがし</column>\n<column name='jpeng'>higasi</column>\n<column name='eng'>eastern</column>\n</table>"]
[9,"西方","西","にし","nisi","western",null,"<table name='jp_position'>\n<column name='id'>9</column>\n<column name='chi'>西方</column>\n<column name='jpchi'>西</column>\n<column name='jp'>にし</column>\n<column name='jpeng'>nisi</column>\n<column name='eng'>western</column>\n</table>"]
[10,"南方","南","みなみ","minami","south",null,"<table name='jp_position'>\n<column name='id'>10</column>\n<column name='chi'>南方</column>\n<column name='jpchi'>南</column>\n<column name='jp'>みなみ</column>\n<column name='jpeng'>minami</column>\n<column name='eng'>south</column>\n</table>"]
[11,"北方","北","きた","kita","north",null,"<table name='jp_position'>\n<column name='id'>11</column>\n<column name='chi'>北方</column>\n<column name='jpchi'>北</column>\n<column name='jp'>きた</column>\n<column name='jpeng'>kita</column>\n<column name='eng'>north</column>\n</table>"]
[12,"裡面","内","うち","uchi","inside",null,"<table name='jp_position'>\n<column name='id'>12</column>\n<column name='chi'>裡面</column>\n<column name='jpchi'>内</column>\n<column name='jp'>うち</column>\n<column name='jpeng'>uchi</column>\n<column name='eng'>inside</column>\n</table>"]
[13,"外面","外","そと","soto","outside",null,"<table name='jp_position'>\n<column name='id'>13</column>\n<column name='chi'>外面</column>\n<column name='jpchi'>外</column>\n<column name='jp'>そと</column>\n<column name='jpeng'>soto</column>\n<column name='eng'>outside</column>\n</table>"]
[14,"附近","辺","へん","henn","nearby",null,"<table name='jp_position'>\n<column name='id'>14</column>\n<column name='chi'>附近</column>\n<column name='jpchi'>辺</column>\n<column name='jp'>へん</column>\n<column name='jpeng'>henn</column>\n<column name='eng'>nearby</column>\n</table>"]
[15,"隔壁","隣","となり","tonari","next door",null,"<table name='jp_position'>\n<column name='id'>15</column>\n<column name='chi'>隔壁</column>\n<column name='jpchi'>隣</column>\n<column name='jp'>となり</column>\n<column name='jpeng'>tonari</column>\n<column name='eng'>next door</column>\n</table>"]
[16,"隔壁、旁邊","横","よこ","yoko","next to",null,"<table name='jp_position'>\n<column name='id'>16</column>\n<column name='chi'>隔壁、旁邊</column>\n<column name='jpchi'>横</column>\n<column name='jp'>よこ</column>\n<column name='jpeng'>yoko</column>\n<column name='eng'>next to</column>\n</table>"]

{"sheet":"數字","index":6,"n_rows":11,"n_cols":8,"rows_kept":11,"cut":false,"hidden":false,"merged":[]}
[{"$f":"COUNT(A2:A100)","v":10},"中文","日文","平假名讀音","羅馬拼音打字","英文"]
[1,1,1,"いち","ichi","one",null,{"$f":"\"<table name='jp_number'>\"& CHAR(10) &\"<column name='id'>\"&A2&\"</column>\"& CHAR(10) &\"<column name='chi'>\"&B2&\"</column>\"&CHAR(10)&\"<column name='jpchi'>\"&C2&\"</column>\"&CHAR(10)&\"<column name='jp'>\"&D2&\"</column>\"&CHAR(10)&\"<column name='jpeng'>\"&E2&\"</column>\"&CHAR(10)&\"<column name='eng'>\"&F2&\"</column>\"&CHAR(10) &\"</table>\"","v":"<table name='jp_number'>\n<column name='id'>1</column>\n<column name='chi'>1</column>\n<column name='jpchi'>1</column>\n<column name='jp'>いち</column>\n<column name='jpeng'>ichi</column>\n<column name='eng'>one</column>\n</table>"}]
[2,2,2,"に","ni","two",null,{"$f":"\"<table name='jp_number'>\"& CHAR(10) &\"<column name='id'>\"&A3&\"</column>\"& CHAR(10) &\"<column name='chi'>\"&B3&\"</column>\"&CHAR(10)&\"<column name='jpchi'>\"&C3&\"</column>\"&CHAR(10)&\"<column name='jp'>\"&D3&\"</column>\"&CHAR(10)&\"<column name='jpeng'>\"&E3&\"</column>\"&CHAR(10)&\"<column name='eng'>\"&F3&\"</column>\"&CHAR(10) &\"</table>\"","v":"<table name='jp_number'>\n<column name='id'>2</column>\n<column name='chi'>2</column>\n<column name='jpchi'>2</column>\n<column name='jp'>に</column>\n<column name='jpeng'>ni</column>\n<column name='eng'>two</column>\n</table>"}]
[3,3,3,"さん","sann","three",null,"<table name='jp_number'>\n<column name='id'>3</column>\n<column name='chi'>3</column>\n<column name='jpchi'>3</column>\n<column name='jp'>さん</column>\n<column name='jpeng'>sann</column>\n<column name='eng'>three</column>\n</table>"]
[4,4,4,"よん","yonn","four",null,"<table name='jp_number'>\n<column name='id'>4</column>\n<column name='chi'>4</column>\n<column name='jpchi'>4</column>\n<column name='jp'>よん</column>\n<column name='jpeng'>yonn</column>\n<column name='eng'>four</column>\n</table>"]
[5,5,5,"ご","go","five",null,"<table name='jp_number'>\n<column name='id'>5</column>\n<column name='chi'>5</column>\n<column name='jpchi'>5</column>\n<column name='jp'>ご</column>\n<column name='jpeng'>go</column>\n<column name='eng'>five</column>\n</table>"]
[6,6,6,"ろく","roku","six",null,"<table name='jp_number'>\n<column name='id'>6</column>\n<column name='chi'>6</column>\n<column name='jpchi'>6</column>\n<column name='jp'>ろく</column>\n<column name='jpeng'>roku</column>\n<column name='eng'>six</column>\n</table>"]
[7,7,7,"しち/なな","sichi/nana","seven",null,"<table name='jp_number'>\n<column name='id'>7</column>\n<column name='chi'>7</column>\n<column name='jpchi'>7</column>\n<column name='jp'>しち/なな</column>\n<column name='jpeng'>sichi/nana</column>\n<column name='eng'>seven</column>\n</table>"]
[8,8,8,"はち","hachi","eight",null,"<table name='jp_number'>\n<column name='id'>8</column>\n<column name='chi'>8</column>\n<column name='jpchi'>8</column>\n<column name='jp'>はち</column>\n<column name='jpeng'>hachi</column>\n<column name='eng'>eight</column>\n</table>"]
[9,9,9,"きゅう","kyuu","nine",null,"<table name='jp_number'>\n<column name='id'>9</column>\n<column name='chi'>9</column>\n<column name='jpchi'>9</column>\n<column name='jp'>きゅう</column>\n<column name='jpeng'>kyuu</column>\n<column name='eng'>nine</column>\n</table>"]
[10,10,10,"じゅう","jyuu","ten",null,"<table name='jp_number'>\n<column name='id'>10</column>\n<column name='chi'>10</column>\n<column name='jpchi'>10</column>\n<column name='jp'>じゅう</column>\n<column name='jpeng'>jyuu</column>\n<column name='eng'>ten</column>\n</table>"]

{"sheet":"動詞","index":7,"n_rows":43,"n_cols":8,"rows_kept":43,"cut":false,"hidden":false,"merged":[]}
[{"$f":"COUNT(A2:A100)","v":42},"中文","日文","平假名讀音","羅馬拼音打字","英文"]
[1,"見面","会う","あう","au","meet",null,{"$f":"\"<table name='jp_verb'>\"& CHAR(10) &\"<column name='id'>\"&A2&\"</column>\"& CHAR(10) &\"<column name='chi'>\"&B2&\"</column>\"&CHAR(10)&\"<column name='jpchi'>\"&C2&\"</column>\"&CHAR(10)&\"<column name='jp'>\"&D2&\"</column>\"&CHAR(10)&\"<column name='jpeng'>\"&E2&\"</column>\"&CHAR(10)&\"<column name='eng'>\"&F2&\"</column>\"&CHAR(10) &\"</table>\"","v":"<table name='jp_verb'>\n<column name='id'>1</column>\n<column name='chi'>見面</column>\n<column name='jpchi'>会う</column>\n<column name='jp'>あう</column>\n<column name='jpeng'>au</column>\n<column name='eng'>meet</column>\n</table>"}]
[2,"玩耍","遊ぶ","あそぶ","asobu","play",null,{"$f":"\"<table name='jp_verb'>\"& CHAR(10) &\"<column name='id'>\"&A3&\"</column>\"& CHAR(10) &\"<column name='chi'>\"&B3&\"</column>\"&CHAR(10)&\"<column name='jpchi'>\"&C3&\"</column>\"&CHAR(10)&\"<column name='jp'>\"&D3&\"</column>\"&CHAR(10)&\"<column name='jpeng'>\"&E3&\"</column>\"&CHAR(10)&\"<column name='eng'>\"&F3&\"</column>\"&CHAR(10) &\"</table>\"","v":"<table name='jp_verb'>\n<column name='id'>2</column>\n<column name='chi'>玩耍</column>\n<column name='jpchi'>遊ぶ</column>\n<column name='jp'>あそぶ</column>\n<column name='jpeng'>asobu</column>\n<column name='eng'>play</column>\n</table>"}]
[3,"走路","歩く","あるく","aruku","walk",null,"<table name='jp_verb'>\n<column name='id'>3</column>\n<column name='chi'>走路</column>\n<column name='jpchi'>歩く</column>\n<column name='jp'>あるく</column>\n<column name='jpeng'>aruku</column>\n<column name='eng'>walk</column>\n</table>"]
[4,"說","言う","いう","iu","speak",null,"<table name='jp_verb'>\n<column name='id'>4</column>\n<column name='chi'>說</column>\n<column name='jpchi'>言う</column>\n<column name='jp'>いう</column>\n<column name='jpeng'>iu</column>\n<column name='eng'>speak</column>\n</table>"]
[5,"去","行く","いく","iku","go",null,"<table name='jp_verb'>\n<column name='id'>5</column>\n<column name='chi'>去</column>\n<column name='jpchi'>行く</column>\n<column name='jp'>いく</column>\n<column name='jpeng'>iku</column>\n<column name='eng'>go</column>\n</table>"]
[6,"需要","要る","いる","iru","need",null,"<table name='jp_verb'>\n<column name='id'>6</column>\n<column name='chi'>需要</column>\n<column name='jpchi'>要る</column>\n<column name='jp'>いる</column>\n<column name='jpeng'>iru</column>\n<column name='eng'>need</column>\n</table>"]
[7,"唱","歌う","うたう","utau","sing",null,"<table name='jp_verb'>\n<column name='id'>7</column>\n<column name='chi'>唱</column>\n<column name='jpchi'>歌う</column>\n<column name='jp'>うたう</column>\n<column name='jpeng'>utau</column>\n<column name='eng'>sing</column>\n</table>"]
[8,"游泳","泳ぐ","およぐ","oyogu","swim",null,"<table name='jp_verb'>\n<column name='id'>8</column>\n<column name='chi'>游泳</column>\n<column name='jpchi'>泳ぐ</column>\n<column name='jp'>およぐ</column>\n<column name='jpeng'>oyogu</column>\n<column name='eng'>swim</column>\n</table>"]
[9,"結束","終わる","おわる","owaru","end",null,"<table name='jp_verb'>\n<column name='id'>9</column>\n<column name='chi'>結束</column>\n<column name='jpchi'>終わる</column>\n<column name='jp'>おわる</column>\n<column name='jpeng'>owaru</column>\n<column name='eng'>end</column>\n</table>"]
[10,"告訴、教導","教える","おしえる","osieru","tell / teach",null,"<table name='jp_verb'>\n<column name='id'>10</column>\n<column name='chi'>告訴、教導</column>\n<column name='jpchi'>教える</column>\n<column name='jp'>おしえる</column>\n<column name='jpeng'>osieru</column>\n<column name='eng'>tell / teach</column>\n</table>"]
[11,"買","買う","かう","kau","buy",null,"<table name='jp_verb'>\n<column name='id'>11</column>\n<column name='chi'>買</column>\n<column name='jpchi'>買う</column>\n<column name='jp'>かう</column>\n<column name='jpeng'>kau</column>\n<column name='eng'>buy</column>\n</table>"]
[12,"寫","書く","かく","kaku","write",null,"<table name='jp_verb'>\n<column name='id'>12</column>\n<column name='chi'>寫</column>\n<column name='jpchi'>書く</column>\n<column name='jp'>かく</column>\n<column name='jpeng'>kaku</column>\n<column name='eng'>write</column>\n</table>"]
[13,"花費時間、金錢","掛かる","かかる","kakaru","spend",null,"<table name='jp_verb'>\n<column name='id'>13</column>\n<column name='chi'>花費時間、金錢</column>\n<column name='jpchi'>掛かる</column>\n<column name='jp'>かかる</column>\n<column name='jpeng'>kakaru</column>\n<column name='eng'>spend</column>\n</table>"]
[14,"回家","帰る","かえる","kaeru","come back home",null,"<table name='jp_verb'>\n<column name='id'>14</column>\n<column name='chi'>回家</column>\n<column name='jpchi'>帰る</column>\n<column name='jp'>かえる</column>\n<column name='jpeng'>kaeru</column>\n<column name='eng'>come back home</column>\n</table>"]
[15,"請教、聽到","聞く","きく","kiku","consult",null,"<table name='jp_verb'>\n<column name='id'>15</column>\n<column name='chi'>請教、聽到</column>\n<column name='jpchi'>聞く</column>\n<column name='jp'>きく</column>\n<column name='jpeng'>kiku</column>\n<column name='eng'>consult</column>\n</table>"]
[16,"回答","答える","こたえる","kotaeru","reply",null,"<table name='jp_verb'>\n<column name='id'>16</column>\n<column name='chi'>回答</column>\n<column name='jpchi'>答える</column>\n<column name='jp'>こたえる</column>\n<column name='jpeng'>kotaeru</column>\n<column name='eng'>reply</column>\n</table>"]
[17,"困擾、為難","困る","こまる","komaru","trouble",null,"<table name='jp_verb'>\n<column name='id'>17</column>\n<column name='chi'>困擾、為難</column>\n<column name='jpchi'>困る</column>\n<column name='jp'>こまる</column>\n<column name='jpeng'>komaru</column>\n<column name='eng'>trouble</column>\n</table>"]
[18,"來","来る","くる","kuru","come",null,"<table name='jp_verb'>\n<column name='id'>18</column>\n<column name='chi'>來</column>\n<column name='jpchi'>来る</column>\n<column name='jp'>くる</column>\n<column name='jpeng'>kuru</column>\n<column name='eng'>come</column>\n</table>"]
[19,"死","死ぬ","しぬ","sinu","die",null,"<table name='jp_verb'>\n<column name='id'>19</column>\n<column name='chi'>死</column>\n<column name='jpchi'>死ぬ</column>\n<column name='jp'>しぬ</column>\n<column name='jpeng'>sinu</column>\n<column name='eng'>die</column>\n</table>"]
[20,"居住","住む","すむ","sumu","live",null,"<table name='jp_verb'>\n<column name='id'>20</column>\n<column name='chi'>居住</column>\n<column name='jpchi'>住む</column>\n<column name='jp'>すむ</column>\n<column name='jpeng'>sumu</column>\n<column name='eng'>live</column>\n</table>"]
[21,"坐下","座る","すわる","suwaru","sit",null,"<table name='jp_verb'>\n<column name='id'>21</column>\n<column name='chi'>坐下</column>\n<column name='jpchi'>座る</column>\n<column name='jp'>すわる</column>\n<column name='jpeng'>suwaru</column>\n<column name='eng'>sit</column>\n</table>"]
[22,"站立","立つ","たつ","tatsu","standing",null,"<table name='jp_verb'>\n<column name='id'>22</column>\n<column name='chi'>站立</column>\n<column name='jpchi'>立つ</column>\n<column name='jp'>たつ</column>\n<column name='jpeng'>tatsu</column>\n<column name='eng'>standing</column>\n</table>"]
[23,"吃","食べる","たべる","taberu","eat",null,"<table name='jp_verb'>\n<column name='id'>23</column>\n<column name='chi'>吃</column>\n<column name='jpchi'>食べる</column>\n<column name='jp'>たべる</column>\n<column name='jpeng'>taberu</column>\n<column name='eng'>eat</column>\n</table>"]
[24,"疲累","疲れる","つかれる","tsukareru","tired",null,"<table name='jp_verb'>\n<column name='id'>24</column>\n<column name='chi'>疲累</column>\n<column name='jpchi'>疲れる</column>\n<column name='jp'>つかれる</column>\n<column name='jpeng'>tsukareru</column>\n<column name='eng'>tired</column>\n</table>"]
[25,"到達","着く","つく","tsuku","arrivals",null,"<table name='jp_verb'>\n<column name='id'>25</column>\n<column name='chi'>到達</column>\n<column name='jpchi'>着く</column>\n<column name='jp'>つく</column>\n<column name='jpeng'>tsuku</column>\n<column name='eng'>arrivals</column>\n</table>"]
[26,"使用","使う","つかう","tsukau","use",null,"<table name='jp_verb'>\n<column name='id'>26</column>\n<column name='chi'>使用</column>\n<column name='jpchi'>使う</column>\n<column name='jp'>つかう</column>\n<column name='jpeng'>tsukau</column>\n<column name='eng'>use</column>\n</table>"]
[27,"做","作る","つくる","tsukuru","do",null,"<table name='jp_verb'>\n<column name='id'>27</column>\n<column name='chi'>做</column>\n<column name='jpchi'>作る</column>\n<column name='jp'>つくる</column>\n<column name='jpeng'>tsukuru</column>\n<column name='eng'>do</column>\n</table>"]
[28,"停止","止まる","とまる","tomaru","stop",null,"<table name='jp_verb'>\n<column name='id'>28</column>\n<column name='chi'>停止</column>\n<column name='jpchi'>止まる</column>\n<column name='jp'>とまる</column>\n<column name='jpeng'>tomaru</column>\n<column name='eng'>stop</column>\n</table>"]
[29,"飛、突然跳出","飛ぶ","とぶ","tobu","fly",null,"<table name='jp_verb'>\n<column name='id'>29</column>\n<column name='chi'>飛、突然跳出</column>\n<column name='jpchi'>飛ぶ</column>\n<column name='jp'>とぶ</column>\n<column name='jpeng'>tobu</column>\n<column name='eng'>fly</column>\n</table>"]
[30,"哭泣","泣く","なく","naku","cry",null,"<table name='jp_verb'>\n<column name='id'>30</column>\n<column name='chi'>哭泣</column>\n<column name='jpchi'>泣く</column>\n<column name='jp'>なく</column>\n<column name='jpeng'>naku</column>\n<column name='eng'>cry</column>\n</table>"]
[31,"睡覺","寝る","ねる","neru","sleep",null,"<table name='jp_verb'>\n<column name='id'>31</column>\n<column name='chi'>睡覺</column>\n<column name='jpchi'>寝る</column>\n<column name='jp'>ねる</column>\n<column name='jpeng'>neru</column>\n<column name='eng'>sleep</column>\n</table>"]
[32,"乘坐","乗る","のる","noru","ride",null,"<table name='jp_verb'>\n<column name='id'>32</column>\n<column name='chi'>乘坐</column>\n<column name='jpchi'>乗る</column>\n<column name='jp'>のる</column>\n<column name='jpeng'>noru</column>\n<column name='eng'>ride</column>\n</table>"]
[33,"喝","飲む","のむ","nomu","dring",null,"<table name='jp_verb'>\n<column name='id'>33</column>\n<column name='chi'>喝</column>\n<column name='jpchi'>飲む</column>\n<column name='jp'>のむ</column>\n<column name='jpeng'>nomu</column>\n<column name='eng'>dring</column>\n</table>"]
[34,"不同、錯誤","違う","ちがう","chigau","different",null,"<table name='jp_verb'>\n<column name='id'>34</column>\n<column name='chi'>不同、錯誤</column>\n<column name='jpchi'>違う</column>\n<column name='jp'>ちがう</column>\n<column name='jpeng'>chigau</column>\n<column name='eng'>different</column>\n</table>"]
[35,"排列、排隊","並ぶ","ならぶ","narabu","queue",null,"<table name='jp_verb'>\n<column name='id'>35</column>\n<column name='chi'>排列、排隊</column>\n<column name='jpchi'>並ぶ</column>\n<column name='jp'>ならぶ</column>\n<column name='jpeng'>narabu</column>\n<column name='eng'>queue</column>\n</table>"]
[36,"進入","入る","はいる","hairu","enter",null,"<table name='jp_verb'>\n<column name='id'>36</column>\n<column name='chi'>進入</column>\n<column name='jpchi'>入る</column>\n<column name='jp'>はいる</column>\n<column name='jpeng'>hairu</column>\n<column name='eng'>enter</column>\n</table>"]
[37,"開始","始まる","はじまる","hajimaru","start",null,"<table name='jp_verb'>\n<column name='id'>37</column>\n<column name='chi'>開始</column>\n<column name='jpchi'>始まる</column>\n<column name='jp'>はじまる</column>\n<column name='jpeng'>hajimaru</column>\n<column name='eng'>start</column>\n</table>"]
[38,"跑（人）、行駛（車）","走る","はしる","hasiru","run",null,"<table name='jp_verb'>\n<column name='id'>38</column>\n<column name='chi'>跑（人）、行駛（車）</column>\n<column name='jpchi'>走る</column>\n<column name='jp'>はしる</column>\n<column name='jpeng'>hasiru</column>\n<column name='eng'>run</column>\n</table>"]
[39,"降下","降る","ふる","furu","lower",null,"<table name='jp_verb'>\n<column name='id'>39</column>\n<column name='chi'>降下</column>\n<column name='jpchi'>降る</column>\n<column name='jp'>ふる</column>\n<column name='jpeng'>furu</column>\n<column name='eng'>lower</column>\n</table>"]
[40,"看","見る","みる","miru","look",null,"<table name='jp_verb'>\n<column name='id'>40</column>\n<column name='chi'>看</column>\n<column name='jpchi'>見る</column>\n<column name='jp'>みる</column>\n<column name='jpeng'>miru</column>\n<column name='eng'>look</column>\n</table>"]
[41,"等待","待つ","まつ","matsu","wait",null,"<table name='jp_verb'>\n<column name='id'>41</column>\n<column name='chi'>等待</column>\n<column name='jpchi'>待つ</column>\n<column name='jp'>まつ</column>\n<column name='jpeng'>matsu</column>\n<column name='eng'>wait</column>\n</table>"]
[42,"閱讀","読む","よむ","yomu","read",null,"<table name='jp_verb'>\n<column name='id'>42</column>\n<column name='chi'>閱讀</column>\n<column name='jpchi'>読む</column>\n<column name='jp'>よむ</column>\n<column name='jpeng'>yomu</column>\n<column name='eng'>read</column>\n</table>"]

{"sheet":"形容詞","index":8,"n_rows":53,"n_cols":8,"rows_kept":53,"cut":false,"hidden":false,"merged":[]}
[{"$f":"COUNT(A2:A100)","v":52},"中文","日文","平假名讀音","羅馬拼音打字","英文"]
[1,"熱的","暑い","あつい","atsui","hot",null,{"$f":"\"<table name='jp_adjective'>\"& CHAR(10) &\"<column name='id'>\"&A2&\"</column>\"& CHAR(10) &\"<column name='chi'>\"&B2&\"</column>\"&CHAR(10)&\"<column name='jpchi'>\"&C2&\"</column>\"&CHAR(10)&\"<column name='jp'>\"&D2&\"</column>\"&CHAR(10)&\"<column name='jpeng'>\"&E2&\"</column>\"&CHAR(10)&\"<column name='eng'>\"&F2&\"</column>\"&CHAR(10) &\"</table>\"","v":"<table name='jp_adjective'>\n<column name='id'>1</column>\n<column name='chi'>熱的</column>\n<column name='jpchi'>暑い</column>\n<column name='jp'>あつい</column>\n<column name='jpeng'>atsui</column>\n<column name='eng'>hot</column>\n</table>"}]
[2,"冷的","寒い","さむい","samui","cold",null,{"$f":"\"<table name='jp_adjective'>\"& CHAR(10) &\"<column name='id'>\"&A3&\"</column>\"& CHAR(10) &\"<column name='chi'>\"&B3&\"</column>\"&CHAR(10)&\"<column name='jpchi'>\"&C3&\"</column>\"&CHAR(10)&\"<column name='jp'>\"&D3&\"</column>\"&CHAR(10)&\"<column name='jpeng'>\"&E3&\"</column>\"&CHAR(10)&\"<column name='eng'>\"&F3&\"</column>\"&CHAR(10) &\"</table>\"","v":"<table name='jp_adjective'>\n<column name='id'>2</column>\n<column name='chi'>冷的</column>\n<column name='jpchi'>寒い</column>\n<column name='jp'>さむい</column>\n<column name='jpeng'>samui</column>\n<column name='eng'>cold</column>\n</table>"}]
[3,"涼的","冷たい","つめたい","tsumetai","cold",null,"<table name='jp_adjective'>\n<column name='id'>3</column>\n<column name='chi'>涼的</column>\n<column name='jpchi'>冷たい</column>\n<column name='jp'>つめたい</column>\n<column name='jpeng'>tsumetai</column>\n<column name='eng'>cold</column>\n</table>"]
[4,"溫暖的","暖かい","あたたかい","atatakai","warm",null,"<table name='jp_adjective'>\n<column name='id'>4</column>\n<column name='chi'>溫暖的</column>\n<column name='jpchi'>暖かい</column>\n<column name='jp'>あたたかい</column>\n<column name='jpeng'>atatakai</column>\n<column name='eng'>warm</column>\n</table>"]
[5,"涼爽的","涼しい","すずしい","suzusii","cool",null,"<table name='jp_adjective'>\n<column name='id'>5</column>\n<column name='chi'>涼爽的</column>\n<column name='jpchi'>涼しい</column>\n<column name='jp'>すずしい</column>\n<column name='jpeng'>suzusii</column>\n<column name='eng'>cool</column>\n</table>"]
[6,"厚的","厚い","あつい","atsui","thick",null,"<table name='jp_adjective'>\n<column name='id'>6</column>\n<column name='chi'>厚的</column>\n<column name='jpchi'>厚い</column>\n<column name='jp'>あつい</column>\n<column name='jpeng'>atsui</column>\n<column name='eng'>thick</column>\n</table>"]
[7,"薄的、淡的","薄い","うすい","usui","thin",null,"<table name='jp_adjective'>\n<column name='id'>7</column>\n<column name='chi'>薄的、淡的</column>\n<column name='jpchi'>薄い</column>\n<column name='jp'>うすい</column>\n<column name='jpeng'>usui</column>\n<column name='eng'>thin</column>\n</table>"]
[8,"近的","近い","ちかい","chikai","close",null,"<table name='jp_adjective'>\n<column name='id'>8</column>\n<column name='chi'>近的</column>\n<column name='jpchi'>近い</column>\n<column name='jp'>ちかい</column>\n<column name='jpeng'>chikai</column>\n<column name='eng'>close</column>\n</table>"]
[9,"遠的","遠い","とおい","tooi","far",null,"<table name='jp_adjective'>\n<column name='id'>9</column>\n<column name='chi'>遠的</column>\n<column name='jpchi'>遠い</column>\n<column name='jp'>とおい</column>\n<column name='jpeng'>tooi</column>\n<column name='eng'>far</column>\n</table>"]
[10,"弱的","弱い","よわい","yowai","weak",null,"<table name='jp_adjective'>\n<column name='id'>10</column>\n<column name='chi'>弱的</column>\n<column name='jpchi'>弱い</column>\n<column name='jp'>よわい</column>\n<column name='jpeng'>yowai</column>\n<column name='eng'>weak</column>\n</table>"]
[11,"強的","強い","つよい","tsuyoi","strong",null,"<table name='jp_adjective'>\n<column name='id'>11</column>\n<column name='chi'>強的</column>\n<column name='jpchi'>強い</column>\n<column name='jp'>つよい</column>\n<column name='jpeng'>tsuyoi</column>\n<column name='eng'>strong</column>\n</table>"]
[12,"輕的","軽い","かるい","karui","light",null,"<table name='jp_adjective'>\n<column name='id'>12</column>\n<column name='chi'>輕的</column>\n<column name='jpchi'>軽い</column>\n<column name='jp'>かるい</column>\n<column name='jpeng'>karui</column>\n<column name='eng'>light</column>\n</table>"]
[13,"重的","重い","おもい","omoi","heavy",null,"<table name='jp_adjective'>\n<column name='id'>13</column>\n<column name='chi'>重的</column>\n<column name='jpchi'>重い</column>\n<column name='jp'>おもい</column>\n<column name='jpeng'>omoi</column>\n<column name='eng'>heavy</column>\n</table>"]
[14,"狹窄","狭い","せまい","semai","narrow",null,"<table name='jp_adjective'>\n<column name='id'>14</column>\n<column name='chi'>狹窄</column>\n<column name='jpchi'>狭い</column>\n<column name='jp'>せまい</column>\n<column name='jpeng'>semai</column>\n<column name='eng'>narrow</column>\n</table>"]
[15,"寬廣","広い","ひろい","hiroi","broad",null,"<table name='jp_adjective'>\n<column name='id'>15</column>\n<column name='chi'>寬廣</column>\n<column name='jpchi'>広い</column>\n<column name='jp'>ひろい</column>\n<column name='jpeng'>hiroi</column>\n<column name='eng'>broad</column>\n</table>"]
[16,"早的","早い","はやい","hayai","early",null,"<table name='jp_adjective'>\n<column name='id'>16</column>\n<column name='chi'>早的</column>\n<column name='jpchi'>早い</column>\n<column name='jp'>はやい</column>\n<column name='jpeng'>hayai</column>\n<column name='eng'>early</column>\n</table>"]
[17,"快的","速い","はやい","hayai","fast",null,"<table name='jp_adjective'>\n<column name='id'>17</column>\n<column name='chi'>快的</column>\n<column name='jpchi'>速い</column>\n<column name='jp'>はやい</column>\n<column name='jpeng'>hayai</column>\n<column name='eng'>fast</column>\n</table>"]
[18,"慢、晚、","遅い","おそい","osoi","slow",null,"<table name='jp_adjective'>\n<column name='id'>18</column>\n<column name='chi'>慢、晚、</column>\n<column name='jpchi'>遅い</column>\n<column name='jp'>おそい</column>\n<column name='jpeng'>osoi</column>\n<column name='eng'>slow</column>\n</table>"]
[19,"粗的、胖的","太い","ふとい","futoi","fat",null,"<table name='jp_adjective'>\n<column name='id'>19</column>\n<column name='chi'>粗的、胖的</column>\n<column name='jpchi'>太い</column>\n<column name='jp'>ふとい</column>\n<column name='jpeng'>futoi</column>\n<column name='eng'>fat</column>\n</table>"]
[20,"細的","細い","ほそい","hosoi","fine",null,"<table name='jp_adjective'>\n<column name='id'>20</column>\n<column name='chi'>細的</column>\n<column name='jpchi'>細い</column>\n<column name='jp'>ほそい</column>\n<column name='jpeng'>hosoi</column>\n<column name='eng'>fine</column>\n</table>"]
[21,"短的","短い","みじかい","mijikai","short",null,"<table name='jp_adjective'>\n<column name='id'>21</column>\n<column name='chi'>短的</column>\n<column name='jpchi'>短い</column>\n<column name='jp'>みじかい</column>\n<column name='jpeng'>mijikai</column>\n<column name='eng'>short</column>\n</table>"]
[22,"長的","長い","ながい","nagai","long",null,"<table name='jp_adjective'>\n<column name='id'>22</column>\n<column name='chi'>長的</column>\n<column name='jpchi'>長い</column>\n<column name='jp'>ながい</column>\n<column name='jpeng'>nagai</column>\n<column name='eng'>long</column>\n</table>"]
[23,"便宜","安い","やすい","yasui","cheap",null,"<table name='jp_adjective'>\n<column name='id'>23</column>\n<column name='chi'>便宜</column>\n<column name='jpchi'>安い</column>\n<column name='jp'>やすい</column>\n<column name='jpeng'>yasui</column>\n<column name='eng'>cheap</column>\n</table>"]
[24,"貴的、高的","高い","たかい","takai","high",null,"<table name='jp_adjective'>\n<column name='id'>24</column>\n<column name='chi'>貴的、高的</column>\n<column name='jpchi'>高い</column>\n<column name='jp'>たかい</column>\n<column name='jpeng'>takai</column>\n<column name='eng'>high</column>\n</table>"]
[25,"矮的","低い","ひくい","hikui","short",null,"<table name='jp_adjective'>\n<column name='id'>25</column>\n<column name='chi'>矮的</column>\n<column name='jpchi'>低い</column>\n<column name='jp'>ひくい</column>\n<column name='jpeng'>hikui</column>\n<column name='eng'>short</column>\n</table>"]
[26,"好的","良い","いい","ii","good",null,"<table name='jp_adjective'>\n<column name='id'>26</column>\n<column name='chi'>好的</column>\n<column name='jpchi'>良い</column>\n<column name='jp'>いい</column>\n<column name='jpeng'>ii</column>\n<column name='eng'>good</column>\n</table>"]
[27,"壞的","悪い","わるい","warui","bad",null,"<table name='jp_adjective'>\n<column name='id'>27</column>\n<column name='chi'>壞的</column>\n<column name='jpchi'>悪い</column>\n<column name='jp'>わるい</column>\n<column name='jpeng'>warui</column>\n<column name='eng'>bad</column>\n</table>"]
[28,"髒的","汚い","きたない","kitanai","dirty",null,"<table name='jp_adjective'>\n<column name='id'>28</column>\n<column name='chi'>髒的</column>\n<column name='jpchi'>汚い</column>\n<column name='jp'>きたない</column>\n<column name='jpeng'>kitanai</column>\n<column name='eng'>dirty</column>\n</table>"]
[29,"新的","新しい","あたらしい","atarasii","new",null,"<table name='jp_adjective'>\n<column name='id'>29</column>\n<column name='chi'>新的</column>\n<column name='jpchi'>新しい</column>\n<column name='jp'>あたらしい</column>\n<column name='jpeng'>atarasii</column>\n<column name='eng'>new</column>\n</table>"]
[30,"舊的","古い","ふるい","furui","old",null,"<table name='jp_adjective'>\n<column name='id'>30</column>\n<column name='chi'>舊的</column>\n<column name='jpchi'>古い</column>\n<column name='jp'>ふるい</column>\n<column name='jpeng'>furui</column>\n<column name='eng'>old</column>\n</table>"]
[31,"有趣的","面白い","おもしろい","omosiroi","interesting",null,"<table name='jp_adjective'>\n<column name='id'>31</column>\n<column name='chi'>有趣的</column>\n<column name='jpchi'>面白い</column>\n<column name='jp'>おもしろい</column>\n<column name='jpeng'>omosiroi</column>\n<column name='eng'>interesting</column>\n</table>"]
[32,"無聊的","つまらない","つまらない","tsumaranai","boring",null,"<table name='jp_adjective'>\n<column name='id'>32</column>\n<column name='chi'>無聊的</column>\n<column name='jpchi'>つまらない</column>\n<column name='jp'>つまらない</column>\n<column name='jpeng'>tsumaranai</column>\n<column name='eng'>boring</column>\n</table>"]
[33,"大的","大きい","おおきい","ookii","big",null,"<table name='jp_adjective'>\n<column name='id'>33</column>\n<column name='chi'>大的</column>\n<column name='jpchi'>大きい</column>\n<column name='jp'>おおきい</column>\n<column name='jpeng'>ookii</column>\n<column name='eng'>big</column>\n</table>"]
[34,"小的","小さい","ちいさい","chiisai","small",null,"<table name='jp_adjective'>\n<column name='id'>34</column>\n<column name='chi'>小的</column>\n<column name='jpchi'>小さい</column>\n<column name='jp'>ちいさい</column>\n<column name='jpeng'>chiisai</column>\n<column name='eng'>small</column>\n</table>"]
[35,"甜的","甘い","あまい","amai","sweet",null,"<table name='jp_adjective'>\n<column name='id'>35</column>\n<column name='chi'>甜的</column>\n<column name='jpchi'>甘い</column>\n<column name='jp'>あまい</column>\n<column name='jpeng'>amai</column>\n<column name='eng'>sweet</column>\n</table>"]
[36,"好吃、好喝","美味しい","おいしい","oisii","delicious",null,"<table name='jp_adjective'>\n<column name='id'>36</column>\n<column name='chi'>好吃、好喝</column>\n<column name='jpchi'>美味しい</column>\n<column name='jp'>おいしい</column>\n<column name='jpeng'>oisii</column>\n<column name='eng'>delicious</column>\n</table>"]
[37,"難吃、難喝","まずい","x","mazui",null,null,"<table name='jp_adjective'>\n<column name='id'>37</column>\n<column name='chi'>難吃、難喝</column>\n<column name='jpchi'>まずい</column>\n<column name='jp'>x</column>\n<column name='jpeng'>mazui</column>\n<column name='eng'></column>\n</table>"]
[38,"簡單","易しい","やさしい","yasasii","simple",null,"<table name='jp_adjective'>\n<column name='id'>38</column>\n<column name='chi'>簡單</column>\n<column name='jpchi'>易しい</column>\n<column name='jp'>やさしい</column>\n<column name='jpeng'>yasasii</column>\n<column name='eng'>simple</column>\n</table>"]
[39,"困難的","難しい","むずかしい","muzukasii","diffcult",null,"<table name='jp_adjective'>\n<column name='id'>39</column>\n<column name='chi'>困難的</column>\n<column name='jpchi'>難しい</column>\n<column name='jp'>むずかしい</column>\n<column name='jpeng'>muzukasii</column>\n<column name='eng'>diffcult</column>\n</table>"]
[40,"溫柔","優しい","やさしい","yasasii","tender",null,"<table name='jp_adjective'>\n<column name='id'>40</column>\n<column name='chi'>溫柔</column>\n<column name='jpchi'>優しい</column>\n<column name='jp'>やさしい</column>\n<column name='jpeng'>yasasii</column>\n<column name='eng'>tender</column>\n</table>"]
[41,"嚴格的","厳しい","きびしい","kibisii","strict",null,"<table name='jp_adjective'>\n<column name='id'>41</column>\n<column name='chi'>嚴格的</column>\n<column name='jpchi'>厳しい</column>\n<column name='jp'>きびしい</column>\n<column name='jpeng'>kibisii</column>\n<column name='eng'>strict</column>\n</table>"]
[42,"暗暗的","暗い","くらい","kurai","secretly",null,"<table name='jp_adjective'>\n<column name='id'>42</column>\n<column name='chi'>暗暗的</column>\n<column name='jpchi'>暗い</column>\n<column name='jp'>くらい</column>\n<column name='jpeng'>kurai</column>\n<column name='eng'>secretly</column>\n</table>"]
[43,"明亮的","明るい","あかるい","akarui","bright",null,"<table name='jp_adjective'>\n<column name='id'>43</column>\n<column name='chi'>明亮的</column>\n<column name='jpchi'>明るい</column>\n<column name='jp'>あかるい</column>\n<column name='jpeng'>akarui</column>\n<column name='eng'>bright</column>\n</table>"]
[44,"忙碌","忙しい","いそがしい","isogasii","busy",null,"<table name='jp_adjective'>\n<column name='id'>44</column>\n<column name='chi'>忙碌</column>\n<column name='jpchi'>忙しい</column>\n<column name='jp'>いそがしい</column>\n<column name='jpeng'>isogasii</column>\n<column name='eng'>busy</column>\n</table>"]
[45,"可愛","可愛い","かわいい","kawaii","cute",null,"<table name='jp_adjective'>\n<column name='id'>45</column>\n<column name='chi'>可愛</column>\n<column name='jpchi'>可愛い</column>\n<column name='jp'>かわいい</column>\n<column name='jpeng'>kawaii</column>\n<column name='eng'>cute</column>\n</table>"]
[46,"快樂","楽しい","たのしい","tanosii","happy",null,"<table name='jp_adjective'>\n<column name='id'>46</column>\n<column name='chi'>快樂</column>\n<column name='jpchi'>楽しい</column>\n<column name='jp'>たのしい</column>\n<column name='jpeng'>tanosii</column>\n<column name='eng'>happy</column>\n</table>"]
[47,"吵、囉嗦","うるさい","x","urusai","noisy",null,"<table name='jp_adjective'>\n<column name='id'>47</column>\n<column name='chi'>吵、囉嗦</column>\n<column name='jpchi'>うるさい</column>\n<column name='jp'>x</column>\n<column name='jpeng'>urusai</column>\n<column name='eng'>noisy</column>\n</table>"]
[48,"漂亮、乾淨","綺麗","きれい","kirei","pretty",null,"<table name='jp_adjective'>\n<column name='id'>48</column>\n<column name='chi'>漂亮、乾淨</column>\n<column name='jpchi'>綺麗</column>\n<column name='jp'>きれい</column>\n<column name='jpeng'>kirei</column>\n<column name='eng'>pretty</column>\n</table>"]
[49,"方便","便利","べんり","bennri","convenience",null,"<table name='jp_adjective'>\n<column name='id'>49</column>\n<column name='chi'>方便</column>\n<column name='jpchi'>便利</column>\n<column name='jp'>べんり</column>\n<column name='jpeng'>bennri</column>\n<column name='eng'>convenience</column>\n</table>"]
[50,"有名","有名","ゆうめい","yuumei","famous",null,"<table name='jp_adjective'>\n<column name='id'>50</column>\n<column name='chi'>有名</column>\n<column name='jpchi'>有名</column>\n<column name='jp'>ゆうめい</column>\n<column name='jpeng'>yuumei</column>\n<column name='eng'>famous</column>\n</table>"]
[51,"安靜","静か","しずか","sizuka","quiet",null,"<table name='jp_adjective'>\n<column name='id'>51</column>\n<column name='chi'>安靜</column>\n<column name='jpchi'>静か</column>\n<column name='jp'>しずか</column>\n<column name='jpeng'>sizuka</column>\n<column name='eng'>quiet</column>\n</table>"]
[52,"熱鬧、繁華","賑やか","にぎやか","nigiyaka","bustling",null,"<table name='jp_adjective'>\n<column name='id'>52</column>\n<column name='chi'>熱鬧、繁華</column>\n<column name='jpchi'>賑やか</column>\n<column name='jp'>にぎやか</column>\n<column name='jpeng'>nigiyaka</column>\n<column name='eng'>bustling</column>\n</table>"]

{"sheet":"工作表1","index":9,"n_rows":8,"n_cols":9,"rows_kept":8,"cut":false,"hidden":false,"merged":[]}
["id","chi","jpchi","jp","jpeng","eng",null,"人物","figure"]
[null,null,null,null,null,null,null,"地點","place"]
[null,null,null,null,null,null,null,"食物","food"]
[null,null,null,null,null,null,null,"物品","thing"]
[null,null,null,null,null,null,null,"方位","position"]
[null,null,null,null,null,null,null,"數字","number"]
[null,null,null,null,null,null,null,"動詞","verb"]
[null,null,null,null,null,null,null,"形容詞","adjective"]